Workbook

Sheet Anggaran 18 Periode
B1: anggaran perusahaan
G2: TANGGAL MULAI | H2: 2011-01-01 | I2: JANGKA WAKTU (DALAM HARI) | K2: 14 | L2: TANGGAL AKHIR | M2: =TEXT(T5,"dd/mm/yyyy") -> 26/08/2012
C5: =UPPER(TEXT(H2,"dd-mmm")) -> 01-JAN | D5: =UPPER(TEXT(C5+DayInterval,"dd-mmm")) -> 15-JAN | E5: 29-JAN | F5: 12-FEB | G5: 26-FEB | H5: 11-MAR | I5: 25-MAR | J5: 08-APR | K5: 22-APR | L5: 06-MEI | M5: 20-MEI | N5: 03-JUN | O5: 17-JUN | P5: 01-JUL | Q5: 15-JUL | R5: 29-JUL | S5: 12-AGU | T5: 26-AGU | U5: TOTAL | V5: TREN
B6: PENGHASILAN BERSIH | C6: =IncomeTable[[#Totals],[Week 1]]-ExpensesTable[[#Totals],[Week 1]] -> Rp1,750.00 | D6: =IncomeTable[[#Totals],[Week 2]]-ExpensesTable[[#Totals],[Week 2]] -> Rp2,236.00 | E6: =IncomeTable[[#Totals],[Week 3]]-ExpensesTable[[#Totals],[Week 3]] -> Rp1,442.00 | F6: =IncomeTable[[#Totals],[Week 4]]-ExpensesTable[[#Totals],[Week 4]] -> Rp2,253.00 | G6: =IncomeTable[[#Totals],[Week 5]]-ExpensesTable[[#Totals],[Week 5]] -> Rp1,533.00 | H6: =IncomeTable[[#Totals],[Week 6]]-ExpensesTable[[#Totals],[Week 6]] -> Rp1,086.00 | I6: =IncomeTable[[#Totals],[Week 7]]-ExpensesTable[[#Totals],[Week 7]] -> Rp1,594.00 | J6: =IncomeTable[[#Totals],[Week 8]]-ExpensesTable[[#Totals],[Week 8]] -> 0 | K6: =IncomeTable[[#Totals],[Week 9]]-ExpensesTable[[#Totals],[Week 9]] -> 0 | L6: =IncomeTable[[#Totals],[Week 10]]-ExpensesTable[[#Totals],[Week 10]] -> 0 | M6: =IncomeTable[[#Totals],[Week 11]]-ExpensesTable[[#Totals],[Week 11]] -> 0 | N6: =IncomeTable[[#Totals],[Week 12]]-ExpensesTable[[#Totals],[Week 12]] -> 0 | O6: =IncomeTable[[#Totals],[Week 13]]-ExpensesTable[[#Totals],[Week 13]] -> 0 | P6: =IncomeTable[[#Totals],[Week 14]]-ExpensesTable[[#Totals],[Week 14]] -> 0 | Q6: =IncomeTable[[#Totals],[Week 15]]-ExpensesTable[[#Totals],[Week 15]] -> 0 | R6: =IncomeTable[[#Totals],[Week 16]]-ExpensesTable[[#Totals],[Week 16]] -> 0 | S6: =IncomeTable[[#Totals],[Week 17]]-ExpensesTable[[#Totals],[Week 17]] -> 0 | T6: =IncomeTable[[#Totals],[Week 18]]-ExpensesTable[[#Totals],[Week 18]] -> 0 | U6: =IncomeTable[[#Totals],[Total]]-ExpensesTable[[#Totals],[Total]] -> Rp11,894.00
A8: penghasilan
B9: ITEM PENGHASILAN 1 | C9: Rp3,000.00 | D9: Rp3,500.00 | E9: Rp2,978.00 | F9: Rp3,384.00 | G9: Rp2,858.00 | H9: Rp2,809.00 | I9: Rp3,220.00 | U9: =SUM(IncomeTable[[#This Row],[Week 1]:[Week 18]]) -> Rp21,749.00
B10: ITEM PENGHASILAN 2 | C10: 1,150.00 | D10: 1,200.00 | E10: 1,144.00 | F10: 1,400.00 | G10: 1,358.00 | H10: 1,154.00 | I10: 1,245.00 | U10: =SUM(IncomeTable[[#This Row],[Week 1]:[Week 18]]) -> 8,651.00
B11: ITEM PENGHASILAN 3 | C11: 300.00 | D11: 350.00 | E11: 392.00 | F11: 326.00 | G11: 381.00 | H11: 364.00 | I11: 315.00 | U11: =SUM(IncomeTable[[#This Row],[Week 1]:[Week 18]]) -> 2,428.00
B12: TOTAL PENGHASILAN | C12: =SUBTOTAL(109,IncomeTable[Week 1]) -> Rp4,450.00 | D12: =SUBTOTAL(109,IncomeTable[Week 2]) -> Rp5,050.00 | E12: =SUBTOTAL(109,IncomeTable[Week 3]) -> Rp4,514.00 | F12: =SUBTOTAL(109,IncomeTable[Week 4]) -> Rp5,110.00 | G12: =SUBTOTAL(109,IncomeTable[Week 5]) -> Rp4,597.00 | H12: =SUBTOTAL(109,IncomeTable[Week 6]) -> Rp4,327.00 | I12: =SUBTOTAL(109,IncomeTable[Week 7]) -> Rp4,780.00 | J12: =SUBTOTAL(109,IncomeTable[Week 8]) -> 0 | K12: =SUBTOTAL(109,IncomeTable[Week 9]) -> 0 | L12: =SUBTOTAL(109,IncomeTable[Week 10]) -> 0 | M12: =SUBTOTAL(109,IncomeTable[Week 11]) -> 0 | N12: =SUBTOTAL(109,IncomeTable[Week 12]) -> 0 | O12: =SUBTOTAL(109,IncomeTable[Week 13]) -> 0 | P12: =SUBTOTAL(109,IncomeTable[Week 14]) -> 0 | Q12: =SUBTOTAL(109,IncomeTable[Week 15]) -> 0 | R12: =SUBTOTAL(109,IncomeTable[Week 16]) -> 0 | S12: =SUBTOTAL(109,IncomeTable[Week 17]) -> 0 | T12: =SUBTOTAL(109,IncomeTable[Week 18]) -> 0 | U12: =SUBTOTAL(109,IncomeTable[Total]) -> Rp32,828.00
A14: pengeluaran
B15: GAJI | C15: Rp1,500.00 | D15: Rp1,577.00 | E15: Rp1,823.00 | F15: Rp1,529.00 | G15: Rp1,759.00 | H15: Rp1,947.00 | I15: Rp1,875.00 | U15: =SUM(ExpensesTable[[#This Row],[Week 1]:[Week 18]]) -> Rp12,010.00
B16: SEWA | C16: 1,000.00 | D16: 1,000.00 | E16: 1,000.00 | F16: 1,000.00 | G16: 1,000.00 | H16: 1,000.00 | I16: 1,000.00 | U16: =SUM(ExpensesTable[[#This Row],[Week 1]:[Week 18]]) -> 7,000.00
B17: LISTRIK | C17: 40.00 | D17: 43.00 | E17: 40.00 | F17: 42.00 | G17: 45.00 | H17: 40.00 | I17: 42.00 | U17: =SUM(ExpensesTable[[#This Row],[Week 1]:[Week 18]]) -> 292.00
B18: TELEPON | C18: 12.00 | D18: 11.00 | E18: 13.00 | F18: 14.00 | G18: 11.00 | H18: 15.00 | I18: 15.00 | U18: =SUM(ExpensesTable[[#This Row],[Week 1]:[Week 18]]) -> 91.00
B19: INTERNET | C19: 15.00 | D19: 15.00 | E19: 15.00 | F19: 15.00 | G19: 15.00 | H19: 15.00 | I19: 15.00 | U19: =SUM(ExpensesTable[[#This Row],[Week 1]:[Week 18]]) -> 105.00
B20: AIR | C20: 11.00 | D20: 10.00 | E20: 13.00 | F20: 10.00 | G20: 13.00 | H20: 10.00 | I20: 12.00 | U20: =SUM(ExpensesTable[[#This Row],[Week 1]:[Week 18]]) -> 79.00
B21: GAS | C21: 23.00 | D21: 27.00 | E21: 26.00 | F21: 27.00 | G21: 22.00 | H21: 29.00 | I21: 21.00 | U21: =SUM(ExpensesTable[[#This Row],[Week 1]:[Week 18]]) -> 175.00
B22: IURAN SAMPAH | C22: 4.00 | D22: 4.00 | E22: 4.00 | F22: 4.00 | G22: 4.00 | H22: 4.00 | I22: 4.00 | U22: =SUM(ExpensesTable[[#This Row],[Week 1]:[Week 18]]) -> 28.00
B23: TV KABEL | C23: 10.00 | D23: 10.00 | E23: 10.00 | F23: 10.00 | G23: 10.00 | H23: 10.00 | I23: 10.00 | U23: =SUM(ExpensesTable[[#This Row],[Week 1]:[Week 18]]) -> 70.00
B24: PERLENGKAPAN KANTOR | C24: 25.00 | D24: 57.00 | E24: 68.00 | F24: 146.00 | G24: 125.00 | H24: 111.00 | I24: 132.00 | U24: =SUM(ExpensesTable[[#This Row],[Week 1]:[Week 18]]) -> 664.00
B25: ASURANSI | C25: 60.00 | D25: 60.00 | E25: 60.00 | F25: 60.00 | G25: 60.00 | H25: 60.00 | I25: 60.00 | U25: =SUM(ExpensesTable[[#This Row],[Week 1]:[Week 18]]) -> 420.00
B26: TOTAL PENGELUARAN | C26: =SUBTOTAL(109,ExpensesTable[Week 1]) -> Rp2,700.00 | D26: =SUBTOTAL(109,ExpensesTable[Week 2]) -> Rp2,814.00 | E26: =SUBTOTAL(109,ExpensesTable[Week 3]) -> Rp3,072.00 | F26: =SUBTOTAL(109,ExpensesTable[Week 4]) -> Rp2,857.00 | G26: =SUBTOTAL(109,ExpensesTable[Week 5]) -> Rp3,064.00 | H26: =SUBTOTAL(109,ExpensesTable[Week 6]) -> Rp3,241.00 | I26: =SUBTOTAL(109,ExpensesTable[Week 7]) -> Rp3,186.00 | J26: =SUBTOTAL(109,ExpensesTable[Week 8]) -> 0 | K26: =SUBTOTAL(109,ExpensesTable[Week 9]) -> 0 | L26: =SUBTOTAL(109,ExpensesTable[Week 10]) -> 0 | M26: =SUBTOTAL(109,ExpensesTable[Week 11]) -> 0 | N26: =SUBTOTAL(109,ExpensesTable[Week 12]) -> 0 | O26: =SUBTOTAL(109,ExpensesTable[Week 13]) -> 0 | P26: =SUBTOTAL(109,ExpensesTable[Week 14]) -> 0 | Q26: =SUBTOTAL(109,ExpensesTable[Week 15]) -> 0 | R26: =SUBTOTAL(109,ExpensesTable[Week 16]) -> 0 | S26: =SUBTOTAL(109,ExpensesTable[Week 17]) -> 0 | T26: =SUBTOTAL(109,ExpensesTable[Week 18]) -> 0 | U26: =SUBTOTAL(109,ExpensesTable[Total]) -> Rp20,934.00
